fUSD/lending_fUSD_20250611
["ID","MTS","AMOUNT","RATE_DAILY","PERIOD"]
[365463978,1749684641582,-475.40579763,0.00019178,2]
[365463979,1749684641591,-490.0,0.00019178,2]
[365463980,1749684641601,-484.28061092,0.00019178,2]
[365463981,1749684641611,-480.0,0.00019178,2]
[365463982,1749684641621,-490.0,0.00019178,2]
[365463983,1749684641631,-494.9345283,0.00019178,2]
[365463984,1749684641640,-490.0,0.00019178,2]
[365463985,1749684641650,-480.0,0.00019178,2]
[365463986,1749684641659,-490.0,0.00019178,2]
[365463987,1749684641669,-490.0,0.00019178,2]
[365463988,1749684641678,-480.0,0.00019178,2]
[365463989,1749684641689,-490.0,0.00019178,2]
[365463990,1749684641698,-490.0,0.00019178,2]
[365463991,1749684641707,-490.0,0.00019178,2]
[365463992,1749684641717,-480.0,0.00019178,2]
[365463993,1749684641726,-490.0,0.00019178,2]
[365463994,1749684641736,-490.0,0.00019178,2]
[365463995,1749684641746,-529.15115664,0.00019178,2]
[365463996,1749684641756,-490.0,0.00019178,2]
[365463997,1749684641765,-480.0,0.00019178,2]
[365463998,1749684641775,-480.0,0.00019178,2]
[365463999,1749684641785,-490.0,0.00019178,2]
[365464000,1749684641795,-480.0,0.00019178,2]
[365464001,1749684641805,-490.0,0.00019178,2]
[365464002,1749684641814,-490.0,0.00019178,2]
[365464003,1749684641824,-490.0,0.00019178,2]
[365464004,1749684641833,-470.0,0.00019178,2]
[365464005,1749684641843,-576.45516568,0.00019178,2]
[365464006,1749684641852,-490.0,0.00019178,2]
[365464007,1749684641865,-490.0,0.00019178,2]
[365464008,1749684641875,-974.67,0.00019178,2]
[365464009,1749684641885,-480.0,0.00019178,2]
[365464010,1749684641894,-490.0,0.00019178,2]
[365464011,1749684641903,-528.64442179,0.00019178,2]
[365464012,1749684641912,-490.0,0.00019178,2]
[365464013,1749684641923,-490.0,0.00019178,2]
[365464014,1749684641932,-480.0,0.00019178,2]
[365464015,1749684641941,-490.0,0.00019178,2]
[365464016,1749684641951,-480.0,0.00019178,2]
[365464017,1749684641960,-480.0,0.00019178,2]
[365464018,1749684641970,-490.0,0.00019178,2]
[365464019,1749684641979,-604.69,0.00019178,2]
[365464020,1749684641989,-490.0,0.00019178,2]
[365464021,1749684641998,-490.0,0.00019178,2]
[365464022,1749684642008,-480.0,0.00019178,2]
[365464023,1749684642017,-490.0,0.00019178,2]
[365464024,1749684642027,-490.0,0.00019178,2]
[365464025,1749684642036,-480.0,0.00019178,2]
[365464026,1749684642047,-720.08,0.00019178,2]
[365464027,1749684642056,-490.0,0.00019178,2]
[365464028,1749684642067,-470.0,0.00019178,2]
[365464029,1749684642077,-490.0,0.00019178,2]
[365464030,1749684642087,-490.0,0.00019178,2]
[365464031,1749684642097,-470.0,0.00019178,2]
[365464032,1749684642107,-490.0,0.00019178,2]
[365464033,1749684642117,-490.0,0.00019178,2]
[365464034,1749684642127,-490.0,0.00019178,2]
[365464035,1749684642136,-490.0,0.00019178,2]
[365464036,1749684642146,-490.0,0.00019178,2]
[365464037,1749684642155,-490.0,0.00019178,2]
[365464038,1749684642165,-490.0,0.00019178,2]
[365464039,1749684642175,-490.0,0.00019178,2]
[365464040,1749684642184,-470.0,0.00019178,2]
[365464041,1749684642193,-470.0,0.00019178,2]
[365464042,1749684642203,-490.0,0.00019178,2]
[365464043,1749684642213,-490.0,0.00019178,2]
[365464044,1749684642223,-490.0,0.00019178,2]
[365464045,1749684642232,-566.66,0.00019178,2]
[365464046,1749684642242,-490.0,0.00019178,2]
[365464047,1749684642252,-480.0,0.00019178,2]
[365464048,1749684642262,-490.0,0.00019178,2]
[365464049,1749684642272,-490.0,0.00019178,2]
[365464050,1749684642281,-490.0,0.00019178,2]
[365464051,1749684642291,-519.52,0.00019178,2]
[365464052,1749684642301,-577.95,0.00019178,2]
[365464053,1749684642311,-490.0,0.00019178,2]
[365464054,1749684642320,-470.0,0.00019178,2]
[365464055,1749684642330,-490.0,0.00019178,2]
[365464056,1749684642339,-490.0,0.00019178,2]
[365464057,1749684642349,-490.0,0.00019178,2]
[365464058,1749684642359,-777.97,0.00019178,2]
[365464059,1749684642368,-490.0,0.00019178,2]
[365464060,1749684642379,-490.0,0.00019178,2]
[365464061,1749684642389,-490.0,0.00019178,2]
[365464062,1749684642398,-490.0,0.00019178,2]
[365464063,1749684642408,-1275.29,0.00019178,2]
[365464064,1749684642417,-470.0,0.00019178,2]
[365464065,1749684642427,-490.0,0.00019178,2]
[365464066,1749684642437,-490.0,0.00019178,2]
[365464067,1749684642446,-490.0,0.00019178,2]
[365464068,1749684642455,-1108.22,0.00019178,2]
[365464069,1749684642465,-490.0,0.00019178,2]
[365464070,1749684642475,-480.0,0.00019178,2]
[365464071,1749684642484,-139.30940462,0.00019178,2]
[365464076,1749684642926,-350.69059538,0.00019178,2]
[365464077,1749684642935,-490.0,0.00019178,2]
[365464078,1749684642944,-819.52,0.00019178,2]
[365464079,1749684642954,-490.0,0.00019178,2]
[365464080,1749684642963,-470.0,0.00019178,2]
[365464081,1749684642973,-576.20700295,0.00019178,2]
[365464082,1749684642983,-490.0,0.00019178,2]
[365464083,1749684642992,-490.0,0.00019178,2]
[365464084,1749684643002,-470.0,0.00019178,2]
[365464085,1749684643011,-541.00346182,0.00019178,2]
[365464086,1749684643020,-490.0,0.00019178,2]
[365464087,1749684643030,-490.0,0.00019178,2]
[365464088,1749684643039,-1082.97,0.00019178,2]
[365464089,1749684643049,-490.0,0.00019178,2]
[365464090,1749684643058,-490.0,0.00019178,2]
[365464092,1749684643067,-490.0,0.00019178,2]
[365464094,1749684643076,-490.0,0.00019178,2]
[365464096,1749684643085,-1181.69,0.00019178,2]
[365464098,1749684643095,-490.0,0.00019178,2]
[365464100,1749684643103,-490.0,0.00019178,2]
[365464102,1749684643113,-968.24,0.00019178,2]
[365464103,1749684643123,-490.0,0.00019178,2]
[365464106,1749684643133,-1449.67,0.00019178,2]
[365464107,1749684643142,-490.0,0.00019178,2]
[365464110,1749684643151,-490.0,0.00019178,2]
[365464112,1749684643161,-490.0,0.00019178,2]
[365464114,1749684643170,-622.63697598,0.00019178,2]
[365464116,1749684643180,-490.0,0.00019178,2]
[365464118,1749684643189,-1044.28,0.00019178,2]
[365464120,1749684643199,-1426.18,0.00019178,2]
[365464122,1749684643208,-985.6,0.00019178,2]
[365464124,1749684643217,-490.0,0.00019178,2]
[365464126,1749684643226,-193.31196387,0.00019178,2]
[365464133,1749684643269,-296.68803613,0.00019178,2]
[365464135,1749684643278,-787.22,0.00019178,2]
[365464136,1749684643287,-490.0,0.00019178,2]
[365464139,1749684643297,-470.0,0.00019178,2]
[365464141,1749684643306,-490.0,0.00019178,2]
[365464142,1749684643315,-176.4854798,0.00019178,2]
[365464145,1749684643331,-1859.8845202,0.00019178,2]
[365464147,1749684643340,-490.0,0.00019178,2]
[365464149,1749684643349,-490.0,0.00019178,2]
[365464151,1749684643359,-490.0,0.00019178,2]
[365464153,1749684643368,-168.941369,0.00019178,2]
[365464155,1749684643378,-490.0,0.00019178,2]
[365464157,1749684643387,-490.0,0.00019178,2]
[365464159,1749684643396,-888.69,0.00019178,2]
[365464161,1749684643406,-495.72,0.00019178,2]
[365464163,1749684643414,-697.65,0.00019178,2]
[365464165,1749684643423,-1006.63,0.00019178,2]
[365464167,1749684643432,-1508.54,0.00019178,2]
[365464169,1749684643441,-490.0,0.00019178,2]
[365464171,1749684643451,-592.3,0.00019178,2]
[365464173,1749684643460,-490.0,0.00019178,2]
[365464175,1749684643469,-472.13555142,0.00019178,2]
[365464177,1749684643478,-444.9211908,0.00019178,2]
[365464179,1749684643487,-859.41,0.00019178,2]
[365464181,1749684643496,-490.0,0.00019178,2]
[365464183,1749684643505,-490.0,0.00019178,2]
[365464185,1749684643515,-435.27334261,0.00019178,2]
[365464187,1749684643524,-490.0,0.00019178,2]
[365464189,1749684643533,-490.0,0.00019178,2]
[365464191,1749684643543,-218.59428142,0.00019178,2]
[365464194,1749684643552,-490.0,0.00019178,2]
[365464195,1749684643568,-490.0,0.00019178,2]
[365464198,1749684643588,-490.0,0.00019178,2]
[365464200,1749684643605,-963.26,0.00019178,2]
[365464202,1749684643616,-490.0,0.00019178,2]
[365464204,1749684643626,-490.0,0.00019178,2]
[365464206,1749684643636,-490.0,0.00019178,2]
[365464208,1749684643644,-165.302409,0.00019178,2]
[365464210,1749684643654,-937.72,0.00019178,2]
[365464212,1749684643663,-490.0,0.00019178,2]
[365464214,1749684643672,-490.0,0.00019178,2]
[365464216,1749684643681,-715.06,0.00019178,2]
[365464218,1749684643691,-1216.58,0.00019178,2]
[365464220,1749684643700,-840.7,0.00019178,2]
[365464222,1749684643709,-490.0,0.00019178,2]
[365464224,1749684643718,-490.0,0.00019178,2]
[365464226,1749684643727,-490.0,0.00019178,2]
[365464228,1749684643736,-1168.2,0.00019178,2]
[365464230,1749684643746,-490.0,0.00019178,2]
[365464232,1749684643755,-490.0,0.00019178,2]
[365464234,1749684643764,-490.0,0.00019178,2]
[365464236,1749684643774,-490.0,0.00019178,2]
[365464238,1749684643786,-490.0,0.00019178,2]
[365464240,1749684643795,-490.0,0.00019178,2]
[365464242,1749684643806,-490.0,0.00019178,2]
[365464244,1749684643815,-656.33,0.00019178,2]
[365464246,1749684643824,-490.0,0.00019178,2]
[365464248,1749684643833,-490.0,0.00019178,2]
[365464249,1749684643843,-490.0,0.00019178,2]
[365464250,1749684643852,-490.0,0.00019178,2]
[365464251,1749684643863,-982.32,0.00019178,2]
[365464252,1749684643875,-838.89,0.00019178,2]
[365464253,1749684643885,-490.0,0.00019178,2]
[365464254,1749684643894,-707.37,0.00019178,2]
[365464255,1749684643903,-500.0,0.00019178,2]
[365464256,1749684643915,-490.0,0.00019178,2]
[365464257,1749684643924,-490.0,0.00019178,2]
[365464258,1749684643934,-462.80846861,0.00019178,2]
[365464259,1749684643951,-832.31,0.00019178,2]
[365464260,1749684643960,-490.0,0.00019178,2]
[365464261,1749684643970,-500.0,0.00019178,2]
[365464262,1749684643979,-1265.23,0.00019178,2]
[365464263,1749684644209,-490.0,0.00019178,2]
[365464264,1749684644219,-490.0,0.00019178,2]
[365464265,1749684644229,-490.0,0.00019178,2]
[365464266,1749684644239,-1673.45,0.00019178,2]
[365464267,1749684644248,-490.0,0.00019178,2]
[365464268,1749684644257,-578.8,0.00019178,2]
[365464269,1749684644267,-490.0,0.00019178,2]
[365464270,1749684644276,-724.09,0.00019178,2]
[365464271,1749684644285,-1524.56,0.00019178,2]
[365464272,1749684644295,-490.0,0.00019178,2]
[365464273,1749684644304,-490.0,0.00019178,2]
[365464274,1749684644313,-1364.18,0.00019178,2]
[365464275,1749684644323,-490.0,0.00019178,2]
[365464276,1749684644332,-490.0,0.00019178,2]
[365464277,1749684644341,-490.0,0.00019178,2]
[365464278,1749684644351,-490.0,0.00019178,2]
[365464279,1749684644360,-698.98,0.00019178,2]
[365464280,1749684644369,-480.0,0.00019178,2]
[365464281,1749684644381,-490.0,0.00019178,2]
[365464282,1749684644391,-490.0,0.00019178,2]
[365464283,1749684644400,-490.0,0.00019178,2]
[365464284,1749684644410,-1370.52,0.00019178,2]
[365464285,1749684644420,-490.0,0.00019178,2]
[365464286,1749684644429,-490.0,0.00019178,2]
[365464287,1749684644438,-490.0,0.00019178,2]
[365464288,1749684644448,-490.0,0.00019178,2]
[365464289,1749684644458,-883.88,0.00019178,2]
[365464290,1749684644467,-704.19,0.00019178,2]
[365464291,1749684644476,-1517.25,0.00019178,2]
[365464292,1749684644486,-1213.12,0.00019178,2]
[365464293,1749684644495,-490.0,0.00019178,2]
[365464294,1749684644504,-470.0,0.00019178,2]
[365464295,1749684644514,-490.0,0.00019178,2]
[365464296,1749684644523,-636.02,0.00019178,2]
[365464297,1749684644533,-490.0,0.00019178,2]
[365464298,1749684644543,-1016.67,0.00019178,2]
[365464299,1749684644552,-490.0,0.00019178,2]
[365464300,1749684644562,-490.0,0.00019178,2]
[365464301,1749684644571,-490.0,0.00019178,2]
[365464302,1749684644581,-490.0,0.00019178,2]
[365464303,1749684644590,-604.3,0.00019178,2]
[365464304,1749684644600,-490.0,0.00019178,2]
[365464305,1749684644610,-490.0,0.00019178,2]
[365464306,1749684644620,-1107.57,0.00019178,2]
[365464307,1749684644631,-1132.57,0.00019178,2]
[365464308,1749684644640,-490.0,0.00019178,2]
[365464309,1749684644650,-490.0,0.00019178,2]
[365464310,1749684644660,-2567.9,0.00019178,2]
[365464311,1749684644669,-1000.0,0.00019178,2]
[365464312,1749684644679,-1015.61,0.00019178,2]
[365464313,1749684644688,-490.0,0.00019178,2]
[365464314,1749684644697,-634.05,0.00019178,2]
[365464315,1749684644707,-480.0,0.00019178,2]
[365464316,1749684644716,-490.0,0.00019178,2]
[365464317,1749684644726,-490.0,0.00019178,2]
[365464318,1749684644735,-1090.2,0.00019178,2]
[365464319,1749684644745,-490.0,0.00019178,2]
[365464320,1749684644754,-1089.02,0.00019178,2]
[365464321,1749684644763,-490.0,0.00019178,2]
[365464322,1749684644772,-480.0,0.00019178,2]
[365464323,1749684644782,-730.07,0.00019178,2]
[365464324,1749684644792,-490.0,0.00019178,2]
[365464325,1749684644803,-480.0,0.00019178,2]
[365464326,1749684644812,-618.33,0.00019178,2]
[365464327,1749684644823,-480.0,0.00019178,2]
[365464328,1749684644832,-480.0,0.00019178,2]
[365464329,1749684644841,-480.0,0.00019178,2]
[365464330,1749684644851,-931.66,0.00019178,2]
[365464331,1749684644861,-490.0,0.00019178,2]
[365464332,1749684644872,-490.0,0.00019178,2]
[365464333,1749684644882,-586.34,0.00019178,2]
[365464334,1749684644891,-1305.23,0.00019178,2]
[365464335,1749684644901,-490.0,0.00019178,2]
[365464336,1749684644912,-155.18542,0.00019178,2]
[365464337,1749684644922,-480.0,0.00019178,2]
[365464338,1749684644932,-780.55,0.00019178,2]
[365464339,1749684644941,-931.21,0.00019178,2]
[365464340,1749684644951,-736.91,0.00019178,2]
[365464341,1749684644961,-5212.41,0.00019178,2]
[365464342,1749684644970,-490.0,0.00019178,2]
[365464343,1749684644980,-544.96,0.00019178,2]
[365464344,1749684644989,-282.69785633,0.00019178,2]
[365464345,1749684644998,-490.0,0.00019178,2]
[365464346,1749684645007,-577.4,0.00019178,2]
[365464347,1749684645018,-12083.12,0.00019178,2]
[365464348,1749684645027,-480.0,0.00019178,2]
[365464349,1749684645037,-1696.27,0.00019178,2]
[365464350,1749684645047,-490.0,0.00019178,2]
[365464351,1749684645056,-1053.6,0.00019178,2]
[365464352,1749684645066,-490.0,0.00019178,2]
[365464353,1749684645076,-1363.1,0.00019178,2]
[365464354,1749684645086,-1013.27,0.00019178,2]
[365464355,1749684645095,-490.0,0.00019178,2]
[365464356,1749684645104,-2355.6,0.00019178,2]
[365464357,1749684645115,-490.0,0.00019178,2]
[365464358,1749684645125,-300.0,0.00019178,2]
[365464359,1749684645134,-490.0,0.00019178,2]
[365464360,1749684645143,-519.9,0.00019178,2]
[365464361,1749684645154,-490.0,0.00019178,2]
[365464362,1749684645163,-1896.81,0.00019178,2]
[365464363,1749684645172,-490.0,0.00019178,2]
[365464364,1749684645182,-5347.22,0.00019178,2]
[365464365,1749684645191,-1039.46,0.00019178,2]
[365464366,1749684645200,-490.0,0.00019178,2]
[365464367,1749684645211,-463.12598187,0.00019178,2]
[365464368,1749684645222,-490.0,0.00019178,2]
[365464369,1749684645231,-984.69,0.00019178,2]
[365464370,1749684645242,-1380.8,0.00019178,2]
[365464371,1749684645251,-490.0,0.00019178,2]
[365464372,1749684645261,-490.0,0.00019178,2]
[365464373,1749684645270,-4290.37,0.00019178,2]
[365464374,1749684645280,-490.0,0.00019178,2]
[365464375,1749684645289,-490.0,0.00019178,2]
[365464376,1749684645299,-490.0,0.00019178,2]
[365464377,1749684645308,-1047.71,0.00019178,2]
[365464378,1749684645317,-586.48,0.00019178,2]
[365464379,1749684645327,-1097.83,0.00019178,2]
[365464380,1749684645337,-490.0,0.00019178,2]
[365464381,1749684645348,-688.4,0.00019178,2]
[365464382,1749684645358,-1213.86,0.00019178,2]
[365464383,1749684645367,-490.0,0.00019178,2]
[365464384,1749684645378,-952.23,0.00019178,2]
[365464385,1749684645387,-1720.26,0.00019178,2]
[365464386,1749684645396,-5049.71,0.00019178,2]
[365464387,1749684645406,-951.73,0.00019178,2]
[365464388,1749684645415,-978.0,0.00019178,2]
[365464389,1749684645425,-1841.88,0.00019178,2]
[365464390,1749684645435,-1037.32,0.00019178,2]
[365464391,1749684645446,-490.0,0.00019178,2]
[365464392,1749684645456,-956.03,0.00019178,2]
[365464393,1749684645466,-695.08,0.00019178,2]
[365464394,1749684645476,-480.0,0.00019178,2]
[365464395,1749684645485,-490.0,0.00019178,2]
[365464396,1749684645495,-490.0,0.00019178,2]
[365464397,1749684645505,-490.0,0.00019178,2]
[365464399,1749684645515,-1050.39,0.00019178,2]
[365464401,1749684645524,-10134.08,0.00019178,2]
[365464403,1749684645534,-1840.78,0.00019178,2]
[365464405,1749684645544,-616.72,0.00019178,2]
[365464407,1749684645555,-2534.67,0.00019178,2]
[365464409,1749684645564,-480.0,0.00019178,2]
[365464411,1749684645574,-2418.16,0.00019178,2]
[365464412,1749684645583,-490.0,0.00019178,2]
[365464413,1749684645593,-557.49,0.00019178,2]
[365464414,1749684645602,-474.85,0.00019178,2]
[365464415,1749684645611,-490.0,0.00019178,2]
[365464416,1749684645621,-480.0,0.00019178,2]
[365464417,1749684645632,-246.40005198,0.00019178,2]
[365464418,1749684645642,-490.0,0.00019178,2]
[365464419,1749684645651,-490.0,0.00019178,2]
[365464420,1749684645661,-591.93633691,0.00019178,2]
[365464421,1749684645671,-490.0,0.00019178,2]
[365464422,1749684645681,-480.0,0.00019178,2]
[365464423,1749684645690,-2240.32,0.00019178,2]
[365464424,1749684645700,-852.19,0.00019178,2]
[365464425,1749684645710,-490.0,0.00019178,2]
[365464426,1749684645719,-2320.28,0.00019178,2]
[365464427,1749684645729,-2693.39,0.00019178,2]
[365464428,1749684645739,-1502.05,0.00019178,2]
[365464429,1749684645748,-490.0,0.00019178,2]
[365464430,1749684645757,-490.0,0.00019178,2]
[365464431,1749684645767,-490.0,0.00019178,2]
[365464432,1749684645777,-470.0,0.00019178,2]
[365464433,1749684645787,-768.58,0.00019178,2]
[365464434,1749684645796,-490.0,0.00019178,2]
[365464435,1749684645807,-1134.95,0.00019178,2]
[365464436,1749684645816,-2014.41,0.00019178,2]
[365464437,1749684645826,-1103.41,0.00019178,2]
[365464438,1749684645835,-634.86,0.00019178,2]
[365464439,1749684645844,-480.0,0.00019178,2]
[365464440,1749684645854,-5068.45,0.00019178,2]
[365464441,1749684645867,-490.0,0.00019178,2]
[365464442,1749684645878,-640.59,0.00019178,2]
[365464443,1749684645888,-490.0,0.00019178,2]
[365464444,1749684645897,-1536.51,0.00019178,2]
[365464445,1749684645910,-490.0,0.00019178,2]
[365464446,1749684645921,-490.0,0.00019178,2]
[365464447,1749684645931,-490.0,0.00019178,2]
[365464448,1749684645941,-1293.79,0.00019178,2]
[365464449,1749684645951,-891.14,0.00019178,2]
[365464450,1749684645962,-260.35954173,0.00019178,2]
[365464451,1749684645977,-2687.97,0.00019178,2]
[365464452,1749684645987,-490.0,0.00019178,2]
[365464453,1749684645996,-490.0,0.00019178,2]
[365464454,1749684646006,-664.05,0.00019178,2]
[365464455,1749684646015,-490.0,0.00019178,2]
[365464456,1749684646025,-1072.23,0.00019178,2]
[365464457,1749684646034,-1562.3,0.00019178,2]
[365464458,1749684646044,-490.01,0.00019178,2]
[365464459,1749684646054,-5625.85,0.00019178,2]
[365464460,1749684646063,-1113.69,0.00019178,2]
[365464461,1749684646073,-685.24,0.00019178,2]
[365464462,1749684646083,-490.0,0.00019178,2]
[365464463,1749684646093,-561.48,0.00019178,2]
[365464464,1749684646103,-561.48,0.00019178,2]
[365464465,1749684646113,-1960.77,0.00019178,2]
[365464466,1749684646122,-490.0,0.00019178,2]
[365464467,1749684646133,-3450.91,0.00019178,2]
[365464468,1749684646145,-712.43,0.00019178,2]
[365464469,1749684646155,-6335.16,0.00019178,2]
[365464470,1749684646164,-1582.28,0.00019178,2]
[365464471,1749684646174,-490.0,0.00019178,2]
[365464472,1749684646186,-3504.01,0.00019178,2]
[365464473,1749684646195,-490.0,0.00019178,2]
[365464474,1749684646205,-457.84624038,0.00019178,2]
[365464475,1749684646215,-731.02,0.00019178,2]
[365464476,1749684646224,-490.0,0.00019178,2]
[365464477,1749684646234,-855.54,0.00019178,2]
[365464478,1749684646244,-3618.76,0.00019178,2]
[365464479,1749684646253,-480.0,0.00019178,2]
[365464480,1749684646263,-490.0,0.00019178,2]
[365464481,1749684646272,-2010.03,0.00019178,2]
[365464482,1749684646282,-2482.93,0.00019178,2]
[365464483,1749684646291,-4311.04,0.00019178,2]
[365464484,1749684646301,-1199.51,0.00019178,2]
[365464485,1749684646310,-480.0,0.00019178,2]
[365464486,1749684646319,-490.0,0.00019178,2]
[365464487,1749684646328,-951.42,0.00019178,2]
[365464488,1749684646338,-800.63,0.00019178,2]
[365464489,1749684646348,-1290.44,0.00019178,2]
[365464490,1749684646358,-490.0,0.00019178,2]
[365464491,1749684646367,-1000.0,0.00019178,2]
[365464492,1749684646377,-1721.55,0.00019178,2]
[365464493,1749684646386,-947.9,0.00019178,2]
[365464494,1749684646396,-521.98,0.00019178,2]
[365464495,1749684646406,-470.40263721,0.00019178,2]
[365464496,1749684646416,-490.0,0.00019178,2]
[365464497,1749684646426,-1436.58,0.00019178,2]
[365464498,1749684646435,-712.17,0.00019178,2]
[365464499,1749684646445,-612.22,0.00019178,2]
[365464500,1749684646456,-351.29365059,0.00019178,2]
[365464501,1749684646465,-490.0,0.00019178,2]
[365464502,1749684646476,-3368.7,0.00019178,2]
[365464503,1749684646487,-490.0,0.00019178,2]
[365464504,1749684646497,-284.74620952,0.00019178,2]
[365464505,1749684646507,-959.36,0.00019178,2]
[365464506,1749684646516,-861.25,0.00019178,2]
[365464507,1749684646526,-490.0,0.00019178,2]
[365464508,1749684646535,-832.34,0.00019178,2]
[365464509,1749684646545,-2104.68,0.00019178,2]
[365464510,1749684646554,-490.0,0.00019178,2]
[365464511,1749684646564,-480.0,0.00019178,2]
[365464512,1749684646573,-490.0,0.00019178,2]
[365464513,1749684646583,-160.68065248,0.00019178,2]
[365464514,1749684646592,-710.5,0.00019178,2]
[365464515,1749684646602,-480.0,0.00019178,2]
[365464516,1749684646611,-490.0,0.00019178,2]
[365464517,1749684646683,-2004.61,0.00019178,2]
[365464518,1749684646694,-490.0,0.00019178,2]
[365464519,1749684646704,-490.0,0.00019178,2]
[365464520,1749684646717,-490.0,0.00019178,2]
[365464521,1749684646736,-601.1,0.00019178,2]
[365464522,1749684646757,-490.0,0.00019178,2]
[365464523,1749684646778,-506.16,0.00019178,2]
[365464524,1749684646789,-490.0,0.00019178,2]
[365464525,1749684646800,-490.0,0.00019178,2]
[365464526,1749684646810,-1240.24,0.00019178,2]
[365464527,1749684646820,-3536.61,0.00019178,2]
[365464528,1749684646830,-1283.53,0.00019178,2]
[365464529,1749684646840,-509.94,0.00019178,2]
[365464530,1749684646849,-2320.57,0.00019178,2]
[365464531,1749684646859,-490.0,0.00019178,2]
[365464532,1749684646873,-490.0,0.00019178,2]
[365464533,1749684646882,-490.0,0.00019178,2]
[365464534,1749684646892,-490.0,0.00019178,2]
[365464535,1749684646901,-490.0,0.00019178,2]
[365464536,1749684646911,-554.6,0.00019178,2]
[365464537,1749684646920,-490.0,0.00019178,2]
[365464538,1749684646930,-490.0,0.00019178,2]
[365464539,1749684646939,-2344.78,0.00019178,2]
[365464540,1749684646949,-1991.67,0.00019178,2]
[365464541,1749684646958,-480.0,0.00019178,2]
[365464542,1749684646968,-490.0,0.00019178,2]
[365464543,1749684646977,-490.0,0.00019178,2]
[365464544,1749684646987,-490.0,0.00019178,2]
[365464545,1749684646996,-12976.27,0.00019178,2]
[365464546,1749684647006,-1462.34,0.00019178,2]
[365464547,1749684647015,-696.62,0.00019178,2]
[365464548,1749684647025,-490.0,0.00019178,2]
[365464549,1749684647034,-439.98438175,0.00019178,2]
[365464550,1749684647044,-490.0,0.00019178,2]
[365464551,1749684647054,-490.0,0.00019178,2]
[365464552,1749684647064,-4147.13,0.00019178,2]
[365464553,1749684647074,-1024.11,0.00019178,2]
[365464554,1749684647083,-736.87,0.00019178,2]
[365464555,1749684647093,-490.0,0.00019178,2]
[365464556,1749684647103,-1452.63,0.00019178,2]
[365464557,1749684647111,-2259.52,0.00019178,2]
[365464558,1749684647121,-490.0,0.00019178,2]
[365464559,1749684647131,-490.0,0.00019178,2]
[365464560,1749684647141,-540.23,0.00019178,2]
[365464561,1749684647151,-490.0,0.00019178,2]
[365464562,1749684647161,-495.34,0.00019178,2]
[365464563,1749684647170,-490.0,0.00019178,2]
[365464564,1749684647179,-572.27613224,0.00019178,2]
[365464565,1749684647189,-954.17,0.00019178,2]
[365464566,1749684647199,-1450.9,0.00019178,2]
[365464567,1749684647208,-490.0,0.00019178,2]
[365464568,1749684647218,-500.0,0.00019178,2]
[365464569,1749684647227,-2518.53,0.00019178,2]
[365464570,1749684647236,-490.0,0.00019178,2]